[Event "Titled Tuesday Blitz November 22 Early 2022"]
[White "Pultinevicius, Paulius"]
[Black "Pajeken, Jakob Leon"]
[WhiteFideId "12809390"]
[BlackFideId "12942839"]
[WhiteElo "2493"]
[BlackElo "2429"]
[Result "1-0"]
[Round "02"]
[TimeControl "180+1"]
[Date "2022.11.22"]
[WhiteClock "0:00:13"]
[BlackClock "0:00:09"]

1. b3 {[%clk 0:03:00]}  d5 {[%clk 0:02:58]} 2. Bb2 {[%clk 0:03:01]}  Bg4 {[%clk 0:02:59]} 3. Nf3 {[%clk 0:03:00]}  Nd7 {[%clk 0:02:59]} 4. g3 {[%clk 0:02:59]}  c6 {[%clk 0:02:57]} 5. Bg2 {[%clk 0:02:58]}  e6 {[%clk 0:02:57]} 6. h3 {[%clk 0:02:59]}  Bh5 {[%clk 0:02:55]} 7. O-O {[%clk 0:02:59]}  h6 {[%clk 0:02:55]} 8. c4 {[%clk 0:02:57]}  Ngf6 {[%clk 0:02:55]} 9. d3 {[%clk 0:02:47]}  Qc7 {[%clk 0:02:48]} 10. a3 {[%clk 0:02:45]}  a5 {[%clk 0:02:47]} 11. Nbd2 {[%clk 0:02:42]}  Bd6 {[%clk 0:02:47]} 12. e3 {[%clk 0:02:39]}  O-O {[%clk 0:02:42]} 13. Qe2 {[%clk 0:02:39]}  Rfe8 {[%clk 0:02:41]} 14. Kh1 {[%clk 0:02:34]}  Rac8 {[%clk 0:02:37]} 15. g4 {[%clk 0:02:35]}  Bg6 {[%clk 0:02:37]} 16. Nh4 {[%clk 0:02:35]}  Bh7 {[%clk 0:02:37]} 17. f4 {[%clk 0:02:36]}  e5 {[%clk 0:02:34]} 18. f5 {[%clk 0:02:32]}  Qb8 {[%clk 0:02:23]} 19. e4 {[%clk 0:02:30]}  d4 {[%clk 0:02:17]} 20. Ndf3 {[%clk 0:02:29]}  Be7 {[%clk 0:02:00]} 21. Bc1 {[%clk 0:02:26]}  b5 {[%clk 0:01:50]} 22. Bd2 {[%clk 0:02:25]}  Nc5 {[%clk 0:01:44]} 23. Rab1 {[%clk 0:02:23]}  Nb7 {[%clk 0:01:41]} 24. Ne1 {[%clk 0:02:19]}  Nd7 {[%clk 0:01:34]} 25. Nhf3 {[%clk 0:02:17]}  Bxa3 {[%clk 0:01:33]} 26. h4 {[%clk 0:02:14]}  f6 {[%clk 0:01:21]} 27. g5 {[%clk 0:02:13]}  hxg5 {[%clk 0:01:22]} 28. hxg5 {[%clk 0:02:14]}  Kf8 {[%clk 0:01:22]} 29. Bh3 {[%clk 0:02:00]}  Ke7 {[%clk 0:01:21]} 30. Kg2 {[%clk 0:02:00]}  Kd8 {[%clk 0:01:16]} 31. Ra1 {[%clk 0:01:54]}  Bb4 {[%clk 0:01:16]} 32. Bxb4 {[%clk 0:01:54]}  axb4 {[%clk 0:01:17]} 33. Nc2 {[%clk 0:01:54]}  bxc4 {[%clk 0:01:16]} 34. bxc4 {[%clk 0:01:48]}  c5 {[%clk 0:01:12]} 35. Rfb1 {[%clk 0:01:48]}  Qd6 {[%clk 0:01:08]} 36. Bg4 {[%clk 0:01:43]}  Kc7 {[%clk 0:01:06]} 37. Bh5 {[%clk 0:01:40]}  Rf8 {[%clk 0:00:57]} 38. g6 {[%clk 0:01:29]}  Bg8 {[%clk 0:00:56]} 39. Nd2 {[%clk 0:01:29]}  Ra8 {[%clk 0:00:55]} 40. Nb3 {[%clk 0:01:27]}  Nb6 {[%clk 0:00:52]} 41. Rh1 {[%clk 0:01:22]}  Rxa1 {[%clk 0:00:52]} 42. Ncxa1 {[%clk 0:01:17]}  Ra8 {[%clk 0:00:50]} 43. Qd2 {[%clk 0:01:12]}  Na4 {[%clk 0:00:47]} 44. Bd1 {[%clk 0:01:12]}  Nc3 {[%clk 0:00:47]} 45. Bc2 {[%clk 0:01:11]}  Na5 {[%clk 0:00:39]} 46. Rh8 {[%clk 0:00:59]}  Nxb3 {[%clk 0:00:38]} 47. Nxb3 {[%clk 0:01:00]}  Qe7 {[%clk 0:00:24]} 48. Kf3 {[%clk 0:00:58]}  Bd5 {[%clk 0:00:23]} 49. Rh7 {[%clk 0:00:48]}  Bc6 {[%clk 0:00:22]} 50. Qh6 {[%clk 0:00:39]}  Rg8 {[%clk 0:00:21]} 51. Nxc5 {[%clk 0:00:39]}  Qxc5 {[%clk 0:00:18]} 52. Rxg7+ {[%clk 0:00:40]}  Rxg7 {[%clk 0:00:18]} 53. Qxg7+ {[%clk 0:00:40]}  Kb6 {[%clk 0:00:19]} 54. Qxf6 {[%clk 0:00:41]}  b3 {[%clk 0:00:19]} 55. Qd8+ {[%clk 0:00:39]}  Ka7 {[%clk 0:00:17]} 56. Qc7+ {[%clk 0:00:38]}  Ka6 {[%clk 0:00:17]} 57. Bxb3 {[%clk 0:00:36]}  Qa3 {[%clk 0:00:15]} 58. Qxc6+ {[%clk 0:00:36]}  Ka7 {[%clk 0:00:14]} 59. Kg4 {[%clk 0:00:18]}  Qc1 {[%clk 0:00:14]} 60. c5 {[%clk 0:00:11]}  Qf4+ {[%clk 0:00:14]} 61. Kh5 {[%clk 0:00:12]}  Qh2+ {[%clk 0:00:13]} 62. Kg5 {[%clk 0:00:12]}  Qf4+ {[%clk 0:00:11]} 63. Kf6 {[%clk 0:00:12]}  Qh4+ {[%clk 0:00:12]} 64. Kf7 {[%clk 0:00:12]}  Qh6 {[%clk 0:00:09]} 65. Qc7+ {[%clk 0:00:12]}  Ka6 {[%clk 0:00:10]} 66. Bc4+ {[%clk 0:00:12]}  Nb5 {[%clk 0:00:09]} 67. Qb6# {[%clk 0:00:13]} 1-0


[Site "https://www.chess.com"]

[Event "Titled Tuesday Blitz November 22 Early 2022"]
[White "Rangel, Daniel"]
[Black "Lauridsen, Jesper Morch"]
[WhiteFideId "2124475"]
[BlackFideId "1401890"]
[WhiteElo "2225"]
[BlackElo "2252"]
[Result "1-0"]
[Round "02"]
[TimeControl "180+1"]
[Date "2022.11.23"]
[WhiteClock "0:00:04"]
[BlackClock "0:00:01"]

1. d4 {[%clk 0:02:59]}  d5 {[%clk 0:02:58]} 2. c4 {[%clk 0:03:00]}  e6 {[%clk 0:02:57]} 3. Nc3 {[%clk 0:02:59]}  Be7 {[%clk 0:02:58]} 4. cxd5 {[%clk 0:02:56]}  exd5 {[%clk 0:02:57]} 5. Bf4 {[%clk 0:02:57]}  Nf6 {[%clk 0:02:57]} 6. e3 {[%clk 0:02:57]}  O-O {[%clk 0:02:57]} 7. Bd3 {[%clk 0:02:57]}  c5 {[%clk 0:02:58]} 8. Nge2 {[%clk 0:02:57]}  Nc6 {[%clk 0:02:57]} 9. O-O {[%clk 0:02:54]}  Bg4 {[%clk 0:02:56]} 10. h3 {[%clk 0:02:49]}  Be6 {[%clk 0:02:55]} 11. a3 {[%clk 0:02:47]}  Rc8 {[%clk 0:02:42]} 12. dxc5 {[%clk 0:02:37]}  Bxc5 {[%clk 0:02:41]} 13. b4 {[%clk 0:02:37]}  Bb6 {[%clk 0:02:33]} 14. Na4 {[%clk 0:02:33]}  Ne4 {[%clk 0:02:13]} 15. Nxb6 {[%clk 0:02:30]}  Qxb6 {[%clk 0:02:01]} 16. Qb1 {[%clk 0:02:10]}  Nd2 {[%clk 0:01:38]} 17. Bxh7+ {[%clk 0:02:11]}  Kh8 {[%clk 0:01:38]} 18. Qd3 {[%clk 0:02:11]}  Nxf1 {[%clk 0:01:36]} 19. Rxf1 {[%clk 0:02:12]}  g6 {[%clk 0:01:25]} 20. Bxg6 {[%clk 0:02:03]}  fxg6 {[%clk 0:01:23]} 21. Qxg6 {[%clk 0:02:04]}  Bf5 {[%clk 0:01:24]} 22. Qh6+ {[%clk 0:01:59]}  Bh7 {[%clk 0:01:23]} 23. Nd4 {[%clk 0:01:44]}  Rxf4 {[%clk 0:00:54]} 24. Qxf4 {[%clk 0:01:23]}  Nxd4 {[%clk 0:00:52]} 25. exd4 {[%clk 0:01:23]}  Qe6 {[%clk 0:00:49]} 26. Rc1 {[%clk 0:01:15]}  Rg8 {[%clk 0:00:40]} 27. Rc7 {[%clk 0:00:57]}  b6 {[%clk 0:00:12]} 28. Rxa7 {[%clk 0:00:41]}  Rc8 {[%clk 0:00:12]} 29. Kh2 {[%clk 0:00:39]}  Rg8 {[%clk 0:00:10]} 30. Rb7 {[%clk 0:00:38]}  Re8 {[%clk 0:00:08]} 31. Rb8 {[%clk 0:00:34]}  Rxb8 {[%clk 0:00:07]} 32. Qxb8+ {[%clk 0:00:35]}  Kg7 {[%clk 0:00:08]} 33. Qf4 {[%clk 0:00:34]}  Bg6 {[%clk 0:00:08]} 34. a4 {[%clk 0:00:33]}  Kh7 {[%clk 0:00:08]} 35. a5 {[%clk 0:00:32]}  bxa5 {[%clk 0:00:08]} 36. bxa5 {[%clk 0:00:33]}  Be4 {[%clk 0:00:08]} 37. f3 {[%clk 0:00:30]}  Bg6 {[%clk 0:00:07]} 38. h4 {[%clk 0:00:25]}  Qe7 {[%clk 0:00:07]} 39. Kg3 {[%clk 0:00:23]}  Qd8 {[%clk 0:00:06]} 40. a6 {[%clk 0:00:20]}  Qb6 {[%clk 0:00:06]} 41. Qe5 {[%clk 0:00:17]}  Qxa6 {[%clk 0:00:06]} 42. Qxd5 {[%clk 0:00:16]}  Qf6 {[%clk 0:00:06]} 43. Qe5 {[%clk 0:00:14]}  Qf7 {[%clk 0:00:06]} 44. Kf2 {[%clk 0:00:11]}  Bh5 {[%clk 0:00:06]} 45. Ke3 {[%clk 0:00:10]}  Bg6 {[%clk 0:00:06]} 46. g4 {[%clk 0:00:09]}  Qb3+ {[%clk 0:00:06]} 47. Kf4 {[%clk 0:00:09]}  Qc2 {[%clk 0:00:06]} 48. h5 {[%clk 0:00:08]}  Qd2+ {[%clk 0:00:05]} 49. Kg3 {[%clk 0:00:09]}  Bf7 {[%clk 0:00:04]} 50. Qf4 {[%clk 0:00:08]}  Qa2 {[%clk 0:00:02]} 51. Qf5+ {[%clk 0:00:07]}  Kg8 {[%clk 0:00:02]} 52. Qe5 {[%clk 0:00:07]}  Qb3 {[%clk 0:00:01]} 53. Qg5+ {[%clk 0:00:07]}  Kf8 {[%clk 0:00:01]} 54. h6 {[%clk 0:00:07]}  Qb8+ {[%clk 0:00:01]} 55. Kg2 {[%clk 0:00:05]}  Qb7 {[%clk 0:00:01]} 56. Qg7+ {[%clk 0:00:04]}  Ke8 {[%clk 0:00:01]} 57. h7 {[%clk 0:00:04]} 1-0


[Site "https://www.chess.com"]

[Event "Titled Tuesday Blitz November 22 Early 2022"]
[White "Rios Escobar, Adan"]
[Black "Derjabin, Ilja"]
[WhiteFideId "3403645"]
[BlackFideId "14104768"]
[WhiteElo "2351"]
[BlackElo "2312"]
[Result "0-1"]
[Round "02"]
[TimeControl "180+1"]
[Date "2022.11.23"]
[WhiteClock "0:00:01"]
[BlackClock "0:01:39"]

1. d4 {[%clk 0:02:38]}  Nf6 {[%clk 0:02:59]} 2. g3 {[%clk 0:02:38]}  c5 {[%clk 0:02:59]} 3. d5 {[%clk 0:02:38]}  e5 {[%clk 0:02:59]} 4. Nc3 {[%clk 0:02:31]}  d6 {[%clk 0:02:56]} 5. e4 {[%clk 0:02:30]}  a6 {[%clk 0:02:54]} 6. a4 {[%clk 0:02:30]}  h5 {[%clk 0:02:50]} 7. h3 {[%clk 0:02:29]}  g6 {[%clk 0:02:49]} 8. Nf3 {[%clk 0:02:23]}  Bh6 {[%clk 0:02:48]} 9. Nd2 {[%clk 0:02:15]}  Nbd7 {[%clk 0:02:46]} 10. a5 {[%clk 0:01:55]}  h4 {[%clk 0:02:42]} 11. g4 {[%clk 0:01:53]}  Bf4 {[%clk 0:02:37]} 12. Bg2 {[%clk 0:01:31]}  g5 {[%clk 0:02:29]} 13. Nc4 {[%clk 0:01:19]}  Qe7 {[%clk 0:02:27]} 14. Be3 {[%clk 0:01:15]}  Nf8 {[%clk 0:02:24]} 15. Na4 {[%clk 0:01:07]}  Bd7 {[%clk 0:02:19]} 16. Nab6 {[%clk 0:00:19]}  Rb8 {[%clk 0:02:16]} 17. Qd3 {[%clk 0:00:19]}  Bb5 {[%clk 0:02:15]} 18. Qa3 {[%clk 0:00:17]}  N8d7 {[%clk 0:02:08]} 19. O-O {[%clk 0:00:12]}  Nxb6 {[%clk 0:02:07]} 20. Nxb6 {[%clk 0:00:10]}  Bxf1 {[%clk 0:02:04]} 21. Bxf1 {[%clk 0:00:11]}  O-O {[%clk 0:02:04]} 22. c4 {[%clk 0:00:08]}  Nxe4 {[%clk 0:01:57]} 23. Bd3 {[%clk 0:00:08]}  f5 {[%clk 0:01:53]} 24. gxf5 {[%clk 0:00:07]}  Nf6 {[%clk 0:01:53]} 25. Re1 {[%clk 0:00:04]}  Kh8 {[%clk 0:01:47]} 26. f3 {[%clk 0:00:02]}  Nh5 {[%clk 0:01:42]} 27. Qc3 {[%clk 0:00:01]}  Bxe3+ {[%clk 0:01:41]} 28. Rxe3 {[%clk 0:00:01]}  Nf4 {[%clk 0:01:39]} 0-1


[Site "https://www.chess.com"]

[Event "Titled Tuesday Blitz November 22 Early 2022"]
[White "Ronka, Erik"]
[Black "Simonovic, Miroslav"]
[WhiteFideId "505080"]
[BlackFideId "919152"]
[WhiteElo "2264"]
[BlackElo "2043"]
[Result "1-0"]
[Round "02"]
[TimeControl "180+1"]
[Date "2022.11.23"]
[WhiteClock "0:00:30"]
[BlackClock "0:00:02"]

1. d4 {[%clk 0:03:00]}  Nf6 {[%clk 0:02:59]} 2. Bf4 {[%clk 0:03:01]}  c5 {[%clk 0:03:00]} 3. c3 {[%clk 0:02:56]}  b6 {[%clk 0:03:00]} 4. Nf3 {[%clk 0:02:51]}  Bb7 {[%clk 0:03:00]} 5. e3 {[%clk 0:02:52]}  g6 {[%clk 0:02:59]} 6. Bd3 {[%clk 0:02:52]}  Bg7 {[%clk 0:03:00]} 7. O-O {[%clk 0:02:52]}  O-O {[%clk 0:03:00]} 8. Qe2 {[%clk 0:02:52]}  d6 {[%clk 0:03:00]} 9. e4 {[%clk 0:02:50]}  Nbd7 {[%clk 0:02:45]} 10. d5 {[%clk 0:02:33]}  h6 {[%clk 0:02:36]} 11. c4 {[%clk 0:02:30]}  Ng4 {[%clk 0:02:28]} 12. Nc3 {[%clk 0:02:18]}  Nge5 {[%clk 0:02:20]} 13. Nxe5 {[%clk 0:02:16]}  Nxe5 {[%clk 0:02:21]} 14. Bg3 {[%clk 0:01:53]}  Qd7 {[%clk 0:01:44]} 15. f4 {[%clk 0:01:47]}  Nxd3 {[%clk 0:01:44]} 16. Qxd3 {[%clk 0:01:48]}  Rad8 {[%clk 0:01:44]} 17. Rad1 {[%clk 0:01:46]}  Bd4+ {[%clk 0:01:42]} 18. Bf2 {[%clk 0:01:44]}  Bxf2+ {[%clk 0:01:42]} 19. Rxf2 {[%clk 0:01:45]}  e6 {[%clk 0:01:37]} 20. f5 {[%clk 0:01:40]}  exf5 {[%clk 0:01:36]} 21. exf5 {[%clk 0:01:40]}  Kh7 {[%clk 0:01:29]} 22. Rdf1 {[%clk 0:01:36]}  Qe7 {[%clk 0:01:11]} 23. Ne4 {[%clk 0:01:22]}  Bc8 {[%clk 0:01:08]} 24. g4 {[%clk 0:00:50]}  Kg8 {[%clk 0:00:21]} 25. Ng3 {[%clk 0:00:41]}  Qg5 {[%clk 0:00:16]} 26. h3 {[%clk 0:00:40]}  Rde8 {[%clk 0:00:14]} 27. Rf3 {[%clk 0:00:40]}  h5 {[%clk 0:00:11]} 28. Ne4 {[%clk 0:00:38]}  Qh4 {[%clk 0:00:10]} 29. Nxd6 {[%clk 0:00:38]}  hxg4 {[%clk 0:00:08]} 30. hxg4 {[%clk 0:00:38]}  Qxg4+ {[%clk 0:00:06]} 31. Rg3 {[%clk 0:00:38]}  Qd4+ {[%clk 0:00:05]} 32. Qxd4 {[%clk 0:00:38]}  cxd4 {[%clk 0:00:06]} 33. Nxe8 {[%clk 0:00:39]}  Rxe8 {[%clk 0:00:07]} 34. fxg6 {[%clk 0:00:38]}  f5 {[%clk 0:00:06]} 35. Rd3 {[%clk 0:00:35]}  Re4 {[%clk 0:00:06]} 36. Rfd1 {[%clk 0:00:35]}  Kg7 {[%clk 0:00:06]} 37. Rxd4 {[%clk 0:00:34]}  Kxg6 {[%clk 0:00:06]} 38. Rxe4 {[%clk 0:00:34]}  fxe4 {[%clk 0:00:07]} 39. Kf2 {[%clk 0:00:34]}  Kf5 {[%clk 0:00:07]} 40. Ke3 {[%clk 0:00:34]}  Ke5 {[%clk 0:00:07]} 41. Rh1 {[%clk 0:00:33]}  Bg4 {[%clk 0:00:04]} 42. Rh4 {[%clk 0:00:33]}  Bf5 {[%clk 0:00:05]} 43. b4 {[%clk 0:00:32]}  a5 {[%clk 0:00:03]} 44. a3 {[%clk 0:00:31]}  axb4 {[%clk 0:00:03]} 45. axb4 {[%clk 0:00:32]}  Bg6 {[%clk 0:00:02]} 46. Rh6 {[%clk 0:00:31]}  Bf5 {[%clk 0:00:02]} 47. Rxb6 {[%clk 0:00:30]} 1-0


[Site "https://www.chess.com"]

[Event "Titled Tuesday Blitz November 22 Early 2022"]
[White "Samaganova, Aleksandra"]
[Black "Reprintsev, Alexander"]
[WhiteFideId "13800221"]
[BlackFideId "14100541"]
[WhiteElo "1864"]
[BlackElo "2230"]
[Result "1-0"]
[Round "02"]
[TimeControl "180+1"]
[Date "2022.11.23"]
[WhiteClock "0:00:14"]
[BlackClock "0:00:14"]

1. c4 {[%clk 0:03:00]}  e5 {[%clk 0:02:58]} 2. Nc3 {[%clk 0:02:57]}  Nc6 {[%clk 0:02:57]} 3. g3 {[%clk 0:02:54]}  Nf6 {[%clk 0:02:40]} 4. Bg2 {[%clk 0:02:50]}  Bc5 {[%clk 0:02:40]} 5. e3 {[%clk 0:02:48]}  d5 {[%clk 0:02:39]} 6. cxd5 {[%clk 0:02:47]}  Nb4 {[%clk 0:02:38]} 7. d3 {[%clk 0:02:46]}  c6 {[%clk 0:02:36]} 8. a3 {[%clk 0:02:43]}  Nbxd5 {[%clk 0:02:35]} 9. Nge2 {[%clk 0:02:42]}  O-O {[%clk 0:02:31]} 10. O-O {[%clk 0:02:41]}  Bg4 {[%clk 0:02:31]} 11. h3 {[%clk 0:02:38]}  Bh5 {[%clk 0:02:11]} 12. g4 {[%clk 0:02:32]}  Bg6 {[%clk 0:02:08]} 13. Ne4 {[%clk 0:02:27]}  Bb6 {[%clk 0:01:54]} 14. N2c3 {[%clk 0:02:20]}  Re8 {[%clk 0:01:51]} 15. Qc2 {[%clk 0:02:06]}  Rc8 {[%clk 0:01:36]} 16. Nxf6+ {[%clk 0:01:58]}  Nxf6 {[%clk 0:01:36]} 17. Ne4 {[%clk 0:01:57]}  Nxe4 {[%clk 0:01:27]} 18. dxe4 {[%clk 0:01:57]}  f6 {[%clk 0:01:27]} 19. Rd1 {[%clk 0:01:53]}  Qe7 {[%clk 0:01:24]} 20. Bd2 {[%clk 0:01:49]}  Bf7 {[%clk 0:01:22]} 21. Bc3 {[%clk 0:01:47]}  Qe6 {[%clk 0:01:21]} 22. Bf3 {[%clk 0:01:45]}  Red8 {[%clk 0:01:20]} 23. Rxd8+ {[%clk 0:01:42]}  Rxd8 {[%clk 0:01:20]} 24. Rd1 {[%clk 0:01:43]}  Qb3 {[%clk 0:01:12]} 25. Rxd8+ {[%clk 0:01:39]}  Bxd8 {[%clk 0:01:12]} 26. Qd2 {[%clk 0:01:39]}  Qb6 {[%clk 0:01:05]} 27. Kg2 {[%clk 0:01:29]}  Qc7 {[%clk 0:01:03]} 28. Be2 {[%clk 0:01:24]}  Be7 {[%clk 0:01:03]} 29. f4 {[%clk 0:01:17]}  Qd6 {[%clk 0:00:52]} 30. Kf3 {[%clk 0:01:07]}  Qxd2 {[%clk 0:00:51]} 31. Bxd2 {[%clk 0:01:07]}  Bd6 {[%clk 0:00:50]} 32. Bc3 {[%clk 0:00:50]}  Kf8 {[%clk 0:00:50]} 33. h4 {[%clk 0:00:50]}  Ke7 {[%clk 0:00:49]} 34. g5 {[%clk 0:00:49]}  h6 {[%clk 0:00:48]} 35. Kg4 {[%clk 0:00:36]}  b6 {[%clk 0:00:42]} 36. f5 {[%clk 0:00:33]}  a5 {[%clk 0:00:38]} 37. Ba6 {[%clk 0:00:26]}  Bc5 {[%clk 0:00:24]} 38. Bd2 {[%clk 0:00:25]}  Be8 {[%clk 0:00:21]} 39. b4 {[%clk 0:00:23]}  axb4 {[%clk 0:00:20]} 40. axb4 {[%clk 0:00:24]}  Bd6 {[%clk 0:00:20]} 41. Bc4 {[%clk 0:00:24]}  c5 {[%clk 0:00:20]} 42. bxc5 {[%clk 0:00:23]}  Bxc5 {[%clk 0:00:20]} 43. Bd5 {[%clk 0:00:20]}  b5 {[%clk 0:00:19]} 44. Bb3 {[%clk 0:00:20]}  Bf7 {[%clk 0:00:17]} 45. Bc2 {[%clk 0:00:19]}  h5+ {[%clk 0:00:16]} 46. Kf3 {[%clk 0:00:18]}  b4 {[%clk 0:00:17]} 47. Bb1 {[%clk 0:00:18]}  b3 {[%clk 0:00:16]} 48. Ke2 {[%clk 0:00:18]}  Bc4+ {[%clk 0:00:17]} 49. Kd1 {[%clk 0:00:18]}  Ba3 {[%clk 0:00:17]} 50. Ba5 {[%clk 0:00:16]}  Kd7 {[%clk 0:00:16]} 51. Kd2 {[%clk 0:00:16]}  Bb2 {[%clk 0:00:15]} 52. Bc3 {[%clk 0:00:15]}  Bf1 {[%clk 0:00:14]} 53. Bxb2 {[%clk 0:00:14]} 1-0


[Site "https://www.chess.com"]

[Event "Titled Tuesday Blitz November 22 Early 2022"]
[White "Sharifov, Mekhriddin"]
[Black "Drygalov, Sergey"]
[WhiteFideId "14701545"]
[BlackFideId "24171743"]
[WhiteElo "2109"]
[BlackElo "2528"]
[Result "0-1"]
[Round "02"]
[TimeControl "180+1"]
[Date "2022.11.22"]
[WhiteClock "0:00:17"]
[BlackClock "0:01:16"]

1. e4 {[%clk 0:03:00]}  c5 {[%clk 0:02:59]} 2. Nf3 {[%clk 0:03:00]}  d6 {[%clk 0:02:59]} 3. d4 {[%clk 0:03:00]}  cxd4 {[%clk 0:03:00]} 4. Nxd4 {[%clk 0:03:01]}  Nf6 {[%clk 0:03:01]} 5. Nc3 {[%clk 0:03:02]}  a6 {[%clk 0:03:02]} 6. Bg5 {[%clk 0:03:03]}  Nbd7 {[%clk 0:03:00]} 7. Bc4 {[%clk 0:03:03]}  Qa5 {[%clk 0:02:58]} 8. Qd2 {[%clk 0:03:03]}  e6 {[%clk 0:02:56]} 9. O-O-O {[%clk 0:03:02]}  Be7 {[%clk 0:02:54]} 10. Kb1 {[%clk 0:02:48]}  Qc5 {[%clk 0:02:49]} 11. Bb3 {[%clk 0:02:43]}  O-O {[%clk 0:02:49]} 12. Be3 {[%clk 0:02:28]}  Qc7 {[%clk 0:02:47]} 13. f3 {[%clk 0:02:17]}  b5 {[%clk 0:02:45]} 14. Bxe6 {[%clk 0:02:16]}  fxe6 {[%clk 0:02:44]} 15. Nxe6 {[%clk 0:02:17]}  Qb7 {[%clk 0:02:41]} 16. Nxf8 {[%clk 0:02:15]}  Bxf8 {[%clk 0:02:35]} 17. g4 {[%clk 0:02:12]}  Ne5 {[%clk 0:02:34]} 18. Qe2 {[%clk 0:02:08]}  Be6 {[%clk 0:02:33]} 19. g5 {[%clk 0:02:08]}  Nfd7 {[%clk 0:02:29]} 20. Nd5 {[%clk 0:02:08]}  Nc4 {[%clk 0:02:22]} 21. Bd4 {[%clk 0:01:57]}  Rc8 {[%clk 0:02:20]} 22. Rhg1 {[%clk 0:01:53]}  Nc5 {[%clk 0:01:28]} 23. g6 {[%clk 0:01:48]}  h6 {[%clk 0:01:27]} 24. f4 {[%clk 0:01:16]}  Na4 {[%clk 0:01:27]} 25. f5 {[%clk 0:00:41]}  Bxd5 {[%clk 0:01:27]} 26. exd5 {[%clk 0:00:42]}  Qxd5 {[%clk 0:01:25]} 27. Bxg7 {[%clk 0:00:43]}  Na3+ {[%clk 0:01:24]} 28. bxa3 {[%clk 0:00:30]}  Bxg7 {[%clk 0:01:23]} 29. Rxd5 {[%clk 0:00:21]}  Nc3+ {[%clk 0:01:23]} 30. Kc1 {[%clk 0:00:09]}  Nxe2+ {[%clk 0:01:24]} 31. Kd2 {[%clk 0:00:09]}  Nxg1 {[%clk 0:01:23]} 32. Rxd6 {[%clk 0:00:10]}  Rf8 {[%clk 0:01:20]} 33. Rd5 {[%clk 0:00:10]}  Nf3+ {[%clk 0:01:20]} 34. Kd3 {[%clk 0:00:10]}  Nd4 {[%clk 0:01:18]} 35. Ke4 {[%clk 0:00:10]}  Nxc2 {[%clk 0:01:17]} 36. Rd7 {[%clk 0:00:10]}  Nd4 {[%clk 0:01:16]} 37. Rd5 {[%clk 0:00:09]}  Re8+ {[%clk 0:01:12]} 38. Kd3 {[%clk 0:00:09]}  Nc6 {[%clk 0:01:12]} 39. h4 {[%clk 0:00:06]}  Rd8 {[%clk 0:01:11]} 40. Ke4 {[%clk 0:00:06]}  Rxd5 {[%clk 0:01:11]} 41. Kxd5 {[%clk 0:00:07]}  Nd4 {[%clk 0:01:11]} 42. Ke4 {[%clk 0:00:07]}  Kf8 {[%clk 0:01:11]} 43. h5 {[%clk 0:00:07]}  Ke7 {[%clk 0:01:11]} 44. a4 {[%clk 0:00:08]}  bxa4 {[%clk 0:01:11]} 45. a3 {[%clk 0:00:08]}  a5 {[%clk 0:01:10]} 46. Kf4 {[%clk 0:00:07]}  Kf6 {[%clk 0:01:11]} 47. Ke4 {[%clk 0:00:08]}  Nxf5 {[%clk 0:01:12]} 48. Kd5 {[%clk 0:00:09]}  Ng3 {[%clk 0:01:12]} 49. Kd4 {[%clk 0:00:09]}  Nxh5 {[%clk 0:01:12]} 50. Ke3 {[%clk 0:00:09]}  Kxg6 {[%clk 0:01:12]} 51. Kf3 {[%clk 0:00:10]}  Kf5 {[%clk 0:01:11]} 52. Kg2 {[%clk 0:00:11]}  Bf8 {[%clk 0:01:12]} 53. Kh3 {[%clk 0:00:12]}  Bxa3 {[%clk 0:01:13]} 54. Kh4 {[%clk 0:00:13]}  Nf6 {[%clk 0:01:14]} 55. Kg3 {[%clk 0:00:13]}  Bd6+ {[%clk 0:01:15]} 56. Kf3 {[%clk 0:00:14]}  a3 {[%clk 0:01:15]} 57. Ke2 {[%clk 0:00:15]}  a2 {[%clk 0:01:15]} 58. Kf3 {[%clk 0:00:15]}  a1=Q {[%clk 0:01:16]} 59. Kg2 {[%clk 0:00:16]}  Qc3 {[%clk 0:01:16]} 60. Kf2 {[%clk 0:00:16]}  a4 {[%clk 0:01:16]} 61. Kg2 {[%clk 0:00:16]}  Ke4 {[%clk 0:01:16]} 62. Kf2 {[%clk 0:00:17]}  Qf3+ {[%clk 0:01:16]} 63. Ke1 {[%clk 0:00:17]}  Bb4# {[%clk 0:01:16]} 0-1


[Site "https://www.chess.com"]